[Event "Late-Titled-Tuesday-Blitz-June-18-2024"]
[Site "Chess.com"]
[Date "2024.06.18"]
[Round "4"]
[White "Legit"]
[Black "OparinGrigoriy"]
[Result "1-0"]
[WhiteElo "2751"]
[BlackElo "3007"]
[TimeControl "180+1"]
[EndTime "14:43:15 PDT"]
[Termination "Legit won by checkmate"]

1. d4 {[%clk 0:03:00.9]} 1... Nf6 {[%clk 0:02:58.7]} 2. Nf3 {[%clk 0:03:01.3]}
2... b6 {[%clk 0:02:58.9]} 3. c4 {[%clk 0:02:56.6]} 3... Bb7 {[%clk 0:02:59.8]}
4. Nc3 {[%clk 0:02:51.2]} 4... g6 {[%clk 0:03:00.4]} 5. g3 {[%clk 0:02:50.4]}
5... Bg7 {[%clk 0:03:01]} 6. Bg2 {[%clk 0:02:50.5]} 6... O-O {[%clk 0:03:01.5]}
7. O-O {[%clk 0:02:50.9]} 7... e6 {[%clk 0:03:01.3]} 8. Qc2 {[%clk 0:02:46.3]}
8... Na6 {[%clk 0:03:01.6]} 9. e4 {[%clk 0:02:44.6]} 9... Nb4 {[%clk 0:02:57.9]}
10. Qe2 {[%clk 0:02:41.9]} 10... a5 {[%clk 0:02:58.3]} 11. a3 {[%clk 0:02:40.4]}
11... Na6 {[%clk 0:02:58.9]} 12. e5 {[%clk 0:02:36]} 12... Ne8 {[%clk
0:02:58.2]} 13. Rd1 {[%clk 0:02:35.9]} 13... d6 {[%clk 0:02:58.2]} 14. Bg5
{[%clk 0:02:34.9]} 14... Qd7 {[%clk 0:02:56.4]} 15. Ne4 {[%clk 0:02:33]} 15...
h6 {[%clk 0:02:51.4]} 16. Nf6+ {[%clk 0:02:25.6]} 16... Nxf6 {[%clk 0:02:50.9]}
17. exf6 {[%clk 0:02:20.4]} 17... hxg5 {[%clk 0:02:49.9]} 18. fxg7 {[%clk
0:02:18.8]} 18... Kxg7 {[%clk 0:02:46.9]} 19. Nxg5 {[%clk 0:02:19]} 19... Bxg2
{[%clk 0:02:46.9]} 20. Kxg2 {[%clk 0:02:19.9]} 20... c6 {[%clk 0:02:39.4]} 21.
h4 {[%clk 0:02:14.8]} 21... Rh8 {[%clk 0:02:39.1]} 22. Qf3 {[%clk 0:02:10.4]}
22... Nc7 {[%clk 0:02:36.7]} 23. Ne4 {[%clk 0:02:03.7]} 23... Qe7 {[%clk
0:02:36]} 24. Ng5 {[%clk 0:01:59.6]} 24... d5 {[%clk 0:02:26.1]} 25. Rac1 {[%clk
0:01:54.9]} 25... Ne8 {[%clk 0:02:22.5]} 26. cxd5 {[%clk 0:01:50.3]} 26... cxd5
{[%clk 0:02:23.4]} 27. Rc6 {[%clk 0:01:48.1]} 27... Nf6 {[%clk 0:02:13.3]} 28.
Re1 {[%clk 0:01:46.6]} 28... Rae8 {[%clk 0:02:02]} 29. Qf4 {[%clk 0:01:44.8]}
29... Nd7 {[%clk 0:01:43.9]} 30. Rc7 {[%clk 0:01:15.6]} 30... Rd8 {[%clk
0:01:44.1]} 31. Rb7 {[%clk 0:00:58.5]} 31... Rhf8 {[%clk 0:01:20.8]} 32. Rc1
{[%clk 0:00:55.7]} 32... Rc8 {[%clk 0:01:17.9]} 33. Rcc7 {[%clk 0:00:54.7]}
33... Rxc7 {[%clk 0:01:11.8]} 34. Qxc7 {[%clk 0:00:55.6]} 34... Rd8 {[%clk
0:01:11.6]} 35. Rxb6 {[%clk 0:00:52.6]} 35... Rc8 {[%clk 0:01:09.1]} 36. Qxc8
{[%clk 0:00:50.7]} 36... Nxb6 {[%clk 0:01:08.6]} 37. Qc5 {[%clk 0:00:50]} 37...
Qb7 {[%clk 0:00:44.2]} 38. Qxa5 {[%clk 0:00:43.2]} 38... Nc4 {[%clk 0:00:44.2]}
39. Qb4 {[%clk 0:00:41.9]} 39... Qxb4 {[%clk 0:00:43.5]} 40. axb4 {[%clk
0:00:42.8]} 40... Nxb2 {[%clk 0:00:43.8]} 41. b5 {[%clk 0:00:38.9]} 41... Nc4
{[%clk 0:00:43.7]} 42. f4 {[%clk 0:00:33.2]} 42... Kf8 {[%clk 0:00:35.4]} 43. g4
{[%clk 0:00:32.8]} 43... Ke7 {[%clk 0:00:35.5]} 44. h5 {[%clk 0:00:30]} 44...
gxh5 {[%clk 0:00:35.1]} 45. gxh5 {[%clk 0:00:30.9]} 45... f6 {[%clk 0:00:35.1]}
46. h6 {[%clk 0:00:24.5]} 46... Kf8 {[%clk 0:00:33.5]} 47. Nxe6+ {[%clk
0:00:22.7]} 47... Kg8 {[%clk 0:00:34.2]} 48. Nc7 {[%clk 0:00:19.5]} 48... Nb6
{[%clk 0:00:33]} 49. Ne8 {[%clk 0:00:18.6]} 49... Kh7 {[%clk 0:00:32.3]} 50.
Nxf6+ {[%clk 0:00:16.4]} 50... Kxh6 {[%clk 0:00:32.9]} 51. Kf3 {[%clk
0:00:14.5]} 51... Kg6 {[%clk 0:00:33.5]} 52. Ng4 {[%clk 0:00:14.5]} 52... Kf5
{[%clk 0:00:30.9]} 53. Ne3+ {[%clk 0:00:14.6]} 53... Ke6 {[%clk 0:00:27.5]} 54.
f5+ {[%clk 0:00:15]} 54... Kd6 {[%clk 0:00:26.6]} 55. Kf4 {[%clk 0:00:13.9]}
55... Na4 {[%clk 0:00:27.2]} 56. Nd1 {[%clk 0:00:09.8]} 56... Nb6 {[%clk
0:00:23.5]} 57. Nc3 {[%clk 0:00:09.4]} 57... Nc4 {[%clk 0:00:22.2]} 58. Kg5
{[%clk 0:00:07.7]} 58... Nd2 {[%clk 0:00:12.5]} 59. Ne2 {[%clk 0:00:06.9]} 59...
Ke7 {[%clk 0:00:07.9]} 60. Kg6 {[%clk 0:00:06.5]} 60... Ne4 {[%clk 0:00:07.5]}
61. Nf4 {[%clk 0:00:06]} 61... Nd6 {[%clk 0:00:03.2]} 62. Nxd5+ {[%clk
0:00:05.4]} 62... Kd7 {[%clk 0:00:03.9]} 63. b6 {[%clk 0:00:05.9]} 63... Kc6
{[%clk 0:00:03.7]} 64. Ne3 {[%clk 0:00:02.3]} 64... Kxb6 {[%clk 0:00:04.1]} 65.
f6 {[%clk 0:00:02.9]} 65... Kc6 {[%clk 0:00:02.8]} 66. f7 {[%clk 0:00:03.4]}
66... Nxf7 {[%clk 0:00:02.5]} 67. Kxf7 {[%clk 0:00:04.3]} 67... Kd6 {[%clk
0:00:02.8]} 68. Kf6 {[%clk 0:00:05]} 68... Kd7 {[%clk 0:00:03.4]} 69. Ke5 {[%clk
0:00:05.4]} 69... Ke7 {[%clk 0:00:04.3]} 70. d5 {[%clk 0:00:05.9]} 70... Kd7
{[%clk 0:00:05.2]} 71. Nc4 {[%clk 0:00:06.8]} 71... Kd8 {[%clk 0:00:05.8]} 72.
d6 {[%clk 0:00:07.1]} 72... Kd7 {[%clk 0:00:06.7]} 73. Kd5 {[%clk 0:00:07.8]}
73... Kd8 {[%clk 0:00:07.5]} 74. Ne5 {[%clk 0:00:08.4]} 74... Ke8 {[%clk
0:00:07.9]} 75. Ke6 {[%clk 0:00:07.7]} 75... Kd8 {[%clk 0:00:08.8]} 76. Nf7+
{[%clk 0:00:08.3]} 76... Kc8 {[%clk 0:00:08.2]} 77. d7+ {[%clk 0:00:09.2]} 77...
Kb7 {[%clk 0:00:09]} 78. d8=Q {[%clk 0:00:09.8]} 78... Ka6 {[%clk 0:00:09.9]}
79. Qb8 {[%clk 0:00:09.6]} 79... Ka5 {[%clk 0:00:10.2]} 80. Qb3 {[%clk
0:00:09.8]} 80... Ka6 {[%clk 0:00:10.6]} 81. Qb4 {[%clk 0:00:10.7]} 81... Ka7
{[%clk 0:00:11.5]} 82. Qb5 {[%clk 0:00:11.2]} 82... Ka8 {[%clk 0:00:12.4]} 83.
Nd6 {[%clk 0:00:11.7]} 83... Ka7 {[%clk 0:00:13.3]} 84. Qb7# {[%clk 0:00:12.4]}
1-0

[Event "Late-Titled-Tuesday-Blitz-June-18-2024"]
[Site "Chess.com"]
[Date "2024.06.18"]
[Round "4"]
[White "drragnar1"]
[Black "CrushingKings"]
[Result "1-0"]
[WhiteElo "2420"]
[BlackElo "2632"]
[TimeControl "180+1"]
[EndTime "14:43:36 PDT"]
[Termination "drragnar1 won by resignation"]

1. Nf3 {[%clk 0:02:59.5]} 1... g6 {[%clk 0:02:58.4]} 2. c4 {[%clk 0:02:58.4]}
2... Bg7 {[%clk 0:02:59.3]} 3. Nc3 {[%clk 0:02:58.8]} 3... d6 {[%clk 0:02:59.8]}
4. g3 {[%clk 0:02:55.7]} 4... Nd7 {[%clk 0:03:00.1]} 5. Bg2 {[%clk 0:02:56.1]}
5... Ngf6 {[%clk 0:03:01]} 6. O-O {[%clk 0:02:56.5]} 6... O-O {[%clk 0:03:01.9]}
7. Rb1 {[%clk 0:02:56.6]} 7... c5 {[%clk 0:03:02.3]} 8. a3 {[%clk 0:02:56.2]}
8... Rb8 {[%clk 0:03:01.6]} 9. b4 {[%clk 0:02:56.5]} 9... b6 {[%clk 0:03:02.5]}
10. d3 {[%clk 0:02:52.3]} 10... Bb7 {[%clk 0:03:02.3]} 11. bxc5 {[%clk
0:02:48.4]} 11... Nxc5 {[%clk 0:03:00.5]} 12. a4 {[%clk 0:02:38.6]} 12... Bc6
{[%clk 0:02:59.5]} 13. Ra1 {[%clk 0:02:30.4]} 13... Nfe4 {[%clk 0:02:50.5]} 14.
Nxe4 {[%clk 0:02:26.4]} 14... Bxa1 {[%clk 0:02:50.5]} 15. Bh6 {[%clk 0:02:18.7]}
15... Bg7 {[%clk 0:02:50]} 16. Bxg7 {[%clk 0:02:18.3]} 16... Kxg7 {[%clk
0:02:50.9]} 17. Qa1+ {[%clk 0:02:17.1]} 17... Kg8 {[%clk 0:02:49.9]} 18. Neg5
{[%clk 0:02:02]} 18... h6 {[%clk 0:02:28.1]} 19. Nh3 {[%clk 0:01:58.4]} 19... e5
{[%clk 0:02:27.3]} 20. Nh4 {[%clk 0:01:49.8]} 20... Bxg2 {[%clk 0:01:59.4]} 21.
Kxg2 {[%clk 0:01:50.7]} 21... Re8 {[%clk 0:01:51.9]} 22. Kg1 {[%clk 0:01:40.4]}
22... d5 {[%clk 0:01:51.5]} 23. cxd5 {[%clk 0:01:36.1]} 23... Qxd5 {[%clk
0:01:51.6]} 24. Nf3 {[%clk 0:01:36]} 24... Rbc8 {[%clk 0:01:43.3]} 25. a5 {[%clk
0:01:34.9]} 25... Nb3 {[%clk 0:01:43.2]} 26. Qb2 {[%clk 0:01:34.2]} 26... bxa5
{[%clk 0:01:38.1]} 27. Nd2 {[%clk 0:01:33.5]} 27... Nxd2 {[%clk 0:01:36.3]} 28.
Qxd2 {[%clk 0:01:32.9]} 28... Kg7 {[%clk 0:01:35.6]} 29. f4 {[%clk 0:01:32.1]}
29... e4 {[%clk 0:01:34.8]} 30. Nf2 {[%clk 0:01:29.2]} 30... e3 {[%clk
0:01:34.7]} 31. Qb2+ {[%clk 0:01:29.4]} 31... Kg8 {[%clk 0:01:31.4]} 32. Ng4
{[%clk 0:01:25.4]} 32... Rc6 {[%clk 0:01:13]} 33. Nf6+ {[%clk 0:00:59]} 33...
Rxf6 {[%clk 0:01:12.3]} 34. Qxf6 {[%clk 0:00:59.9]} 34... Re6 {[%clk 0:01:09.4]}
35. Qc3 {[%clk 0:00:55.7]} 35... Rc6 {[%clk 0:01:07.6]} 36. Qb2 {[%clk
0:00:48.7]} 36... a4 {[%clk 0:01:04.9]} 37. Qb8+ {[%clk 0:00:37.4]} 37... Kg7
{[%clk 0:01:03.3]} 38. Qxa7 {[%clk 0:00:35.1]} 38... Rc2 {[%clk 0:00:53.1]} 39.
Qxa4 {[%clk 0:00:25.8]} 39... Rxe2 {[%clk 0:00:53.1]} 40. Qe4 {[%clk 0:00:16]}
40... Qxe4 {[%clk 0:00:19.9]} 41. dxe4 {[%clk 0:00:16.9]} 41... g5 {[%clk
0:00:20.6]} 42. h3 {[%clk 0:00:10.6]} 42... Kg6 {[%clk 0:00:19.2]} 43. Rf3
{[%clk 0:00:08.7]} 43... Re1+ {[%clk 0:00:07.4]} 44. Kg2 {[%clk 0:00:07.4]}
44... e2 {[%clk 0:00:05.5]} 45. Kf2 {[%clk 0:00:05.6]} 45... Rh1 {[%clk
0:00:05.3]} 46. Kxe2 {[%clk 0:00:05.7]} 46... Rxh3 {[%clk 0:00:05.8]} 47. f5+
{[%clk 0:00:05.1]} 47... Kf6 {[%clk 0:00:05.9]} 48. Rb3 {[%clk 0:00:04.5]} 48...
Ke5 {[%clk 0:00:06]} 49. Kf3 {[%clk 0:00:04.4]} 49... h5 {[%clk 0:00:04]} 50.
Rb5+ {[%clk 0:00:04]} 50... Kf6 {[%clk 0:00:03]} 51. Rb6+ {[%clk 0:00:04.4]}
51... Ke5 {[%clk 0:00:03.6]} 52. Rb5+ {[%clk 0:00:04.6]} 52... Kd4 {[%clk
0:00:03.8]} 53. Rd5+ {[%clk 0:00:03.8]} 53... Kc4 {[%clk 0:00:04]} 54. Kg2
{[%clk 0:00:04.3]} 54... g4 {[%clk 0:00:03.5]} 55. Rd8 {[%clk 0:00:04]} 55... h4
{[%clk 0:00:03.2]} 56. gxh4 {[%clk 0:00:04.5]} 56... Rxh4 {[%clk 0:00:03.9]} 57.
Kg3 {[%clk 0:00:05.1]} 57... Rh1 {[%clk 0:00:02.8]} 58. Kxg4 {[%clk 0:00:05.5]}
58... Re1 {[%clk 0:00:03.5]} 59. Kf4 {[%clk 0:00:05.9]} 59... f6 {[%clk
0:00:04]} 60. Rd6 {[%clk 0:00:06]} 60... Rf1+ {[%clk 0:00:04.5]} 61. Ke3 {[%clk
0:00:06.4]} 61... Re1+ {[%clk 0:00:05]} 62. Kf3 {[%clk 0:00:06.9]} 62... Rf1+
{[%clk 0:00:05.3]} 63. Ke2 {[%clk 0:00:07.4]} 63... Rf4 {[%clk 0:00:06]} 64. Ke3
{[%clk 0:00:07.2]} 64... Rh4 {[%clk 0:00:05.7]} 65. Rxf6 {[%clk 0:00:07.6]}
65... Kc5 {[%clk 0:00:06]} 66. Rf8 {[%clk 0:00:07.4]} 66... Kd6 {[%clk
0:00:06.9]} 67. Rd8+ {[%clk 0:00:06.7]} 67... Ke5 {[%clk 0:00:07.2]} 68. Re8+
{[%clk 0:00:06.9]} 68... Kd6 {[%clk 0:00:07.2]} 69. Re6+ {[%clk 0:00:07.4]}
69... Kd7 {[%clk 0:00:07.6]} 70. Kd4 {[%clk 0:00:07.5]} 70... Rh1 {[%clk
0:00:07.4]} 71. Ke5 {[%clk 0:00:07.9]} 71... Rh7 {[%clk 0:00:08]} 72. Rg6 {[%clk
0:00:08]} 72... Re7+ {[%clk 0:00:07.8]} 73. Kf4 {[%clk 0:00:08.5]} 73... Rh7
{[%clk 0:00:08.4]} 74. Ra6 {[%clk 0:00:08.2]} 74... Rh6 {[%clk 0:00:07.9]} 75.
Rxh6 {[%clk 0:00:07.9]} 1-0

[Event "Late-Titled-Tuesday-Blitz-June-18-2024"]
[Site "Chess.com"]
[Date "2024.06.18"]
[Round "4"]
[White "micke12a"]
[Black "dolynachess"]
[Result "0-1"]
[WhiteElo "2380"]
[BlackElo "2553"]
[TimeControl "180+1"]
[EndTime "14:43:38 PDT"]
[Termination "dolynachess won on time"]

1. e4 {[%clk 0:03:00.9]} 1... c5 {[%clk 0:02:59.7]} 2. Nc3 {[%clk 0:03:01.1]}
2... d6 {[%clk 0:02:59.9]} 3. d4 {[%clk 0:03:00.9]} 3... cxd4 {[%clk 0:02:58.9]}
4. Qxd4 {[%clk 0:03:01.8]} 4... Nc6 {[%clk 0:02:58.1]} 5. Qd2 {[%clk 0:03:02.1]}
5... Nf6 {[%clk 0:02:57.2]} 6. b3 {[%clk 0:03:01.3]} 6... g6 {[%clk 0:02:57.2]}
7. Bb2 {[%clk 0:03:01.1]} 7... Bg7 {[%clk 0:02:57.8]} 8. O-O-O {[%clk
0:03:01.3]} 8... O-O {[%clk 0:02:58.3]} 9. f3 {[%clk 0:03:01.9]} 9... Qa5 {[%clk
0:02:54.4]} 10. Kb1 {[%clk 0:03:01.8]} 10... Bd7 {[%clk 0:02:51.5]} 11. Nge2
{[%clk 0:02:59.4]} 11... Rfc8 {[%clk 0:02:50.5]} 12. g4 {[%clk 0:02:59.3]} 12...
b5 {[%clk 0:02:45.6]} 13. Nd5 {[%clk 0:02:38.8]} 13... Qxd2 {[%clk 0:02:42.9]}
14. Rxd2 {[%clk 0:02:38.9]} 14... Nxd5 {[%clk 0:02:42]} 15. exd5 {[%clk
0:02:35.5]} 15... Ne5 {[%clk 0:02:40.4]} 16. Nd4 {[%clk 0:02:31.1]} 16... b4
{[%clk 0:02:26.7]} 17. h3 {[%clk 0:02:21.2]} 17... Bh6 {[%clk 0:02:00.2]} 18.
Rd1 {[%clk 0:02:19.2]} 18... a5 {[%clk 0:01:59.7]} 19. h4 {[%clk 0:02:04.6]}
19... Bg7 {[%clk 0:01:54.2]} 20. Be2 {[%clk 0:01:44.5]} 20... Rc5 {[%clk
0:01:53.6]} 21. Rhg1 {[%clk 0:00:55.5]} 21... Rxd5 {[%clk 0:01:31.2]} 22. f4
{[%clk 0:00:52.8]} 22... Nc6 {[%clk 0:01:26]} 23. Bf3 {[%clk 0:00:38.9]} 23...
Bxd4 {[%clk 0:01:25.5]} 24. Bxd4 {[%clk 0:00:29.3]} 24... Rb5 {[%clk 0:01:14.4]}
25. Bb2 {[%clk 0:00:25.9]} 25... Rc8 {[%clk 0:01:12]} 26. Be4 {[%clk 0:00:19.1]}
26... Nd8 {[%clk 0:01:04]} 27. f5 {[%clk 0:00:18.9]} 27... Bc6 {[%clk
0:01:00.4]} 28. Bd3 {[%clk 0:00:16.4]} 28... Rc5 {[%clk 0:00:57.8]} 29. Bd4
{[%clk 0:00:15.2]} 29... Nb7 {[%clk 0:00:46.3]} 30. Bxc5 {[%clk 0:00:14.8]}
30... Nxc5 {[%clk 0:00:47.2]} 31. fxg6 {[%clk 0:00:15.1]} 31... hxg6 {[%clk
0:00:46.7]} 32. h5 {[%clk 0:00:15.4]} 32... Nxd3 {[%clk 0:00:37.4]} 33. Rxd3
{[%clk 0:00:14.6]} 33... Be4 {[%clk 0:00:37.4]} 34. Rd2 {[%clk 0:00:14.8]} 34...
Kg7 {[%clk 0:00:35.5]} 35. hxg6 {[%clk 0:00:14]} 35... Bxg6 {[%clk 0:00:36.4]}
36. Kb2 {[%clk 0:00:14.2]} 36... Rc5 {[%clk 0:00:35]} 37. Rc1 {[%clk 0:00:12.7]}
37... Rc3 {[%clk 0:00:31.9]} 38. a3 {[%clk 0:00:12.4]} 38... Rg3 {[%clk
0:00:24.7]} 39. Rd4 {[%clk 0:00:12.9]} 39... bxa3+ {[%clk 0:00:24.1]} 40. Kxa3
{[%clk 0:00:12.7]} 40... Rg2 {[%clk 0:00:20.2]} 41. Kb2 {[%clk 0:00:11.2]} 41...
Kf6 {[%clk 0:00:18.3]} 42. Ra4 {[%clk 0:00:11.3]} 42... Kg5 {[%clk 0:00:17.4]}
43. Rxa5+ {[%clk 0:00:10.8]} 43... Kxg4 {[%clk 0:00:17.8]} 44. Ra4+ {[%clk
0:00:10.6]} 44... Kg5 {[%clk 0:00:17]} 45. b4 {[%clk 0:00:10.6]} 45... Be4
{[%clk 0:00:15.3]} 46. b5 {[%clk 0:00:10.6]} 46... f5 {[%clk 0:00:14.4]} 47. b6
{[%clk 0:00:05.7]} 47... Bc6 {[%clk 0:00:13.9]} 48. Rc4 {[%clk 0:00:05.4]} 48...
Bd5 {[%clk 0:00:13.1]} 49. Rc7 {[%clk 0:00:04.6]} 49... Rh2 {[%clk 0:00:12.5]}
50. Rc6 {[%clk 0:00:04.9]} 50... Bxc6 {[%clk 0:00:11.9]} 51. Kb3 {[%clk
0:00:04.7]} 51... Bb7 {[%clk 0:00:12.2]} 52. c4 {[%clk 0:00:04.9]} 52... Rh8
{[%clk 0:00:12.4]} 53. Ra1 {[%clk 0:00:05.2]} 53... Rc8 {[%clk 0:00:11.4]} 54.
Kb4 {[%clk 0:00:05.7]} 54... Be4 {[%clk 0:00:11.6]} 55. Ra7 {[%clk 0:00:05.7]}
55... Rb8 {[%clk 0:00:11.2]} 56. Kb5 {[%clk 0:00:05.5]} 56... f4 {[%clk
0:00:11.4]} 57. Rxe7 {[%clk 0:00:05.2]} 57... Kf5 {[%clk 0:00:10.7]} 58. Rd7
{[%clk 0:00:05]} 58... Ke5 {[%clk 0:00:10.8]} 59. Re7+ {[%clk 0:00:05.1]} 59...
Kd4 {[%clk 0:00:11.2]} 60. Rd7 {[%clk 0:00:05.2]} 60... d5 {[%clk 0:00:11.1]}
61. c5 {[%clk 0:00:04.9]} 61... Ke5 {[%clk 0:00:10.7]} 62. c6 {[%clk 0:00:05.1]}
62... d4 {[%clk 0:00:11]} 63. c7 {[%clk 0:00:04.9]} 63... Rc8 {[%clk 0:00:11.3]}
64. Rd8 {[%clk 0:00:05.1]} 64... Bb7 {[%clk 0:00:09.7]} 65. Rxc8 {[%clk
0:00:04.5]} 65... Bxc8 {[%clk 0:00:10.6]} 66. Kc6 {[%clk 0:00:05.3]} 66... d3
{[%clk 0:00:09.8]} 67. b7 {[%clk 0:00:05.8]} 67... Bxb7+ {[%clk 0:00:09.9]} 68.
Kxb7 {[%clk 0:00:06.2]} 68... d2 {[%clk 0:00:10.8]} 69. c8=Q {[%clk 0:00:06.8]}
69... d1=Q {[%clk 0:00:11.4]} 70. Qc3+ {[%clk 0:00:07]} 70... Ke4 {[%clk
0:00:11.2]} 71. Qb4+ {[%clk 0:00:05.1]} 71... Qd4 {[%clk 0:00:11.2]} 72. Qe1+
{[%clk 0:00:05.3]} 72... Qe3 {[%clk 0:00:10.6]} 73. Qb4+ {[%clk 0:00:05.2]}
73... Kf3 {[%clk 0:00:10]} 74. Qf8 {[%clk 0:00:04.7]} 74... Kf2 {[%clk
0:00:09.1]} 75. Kc6 {[%clk 0:00:03.9]} 75... f3 {[%clk 0:00:09.1]} 76. Qf5
{[%clk 0:00:03.3]} 76... Ke2 {[%clk 0:00:08.2]} 77. Qc2+ {[%clk 0:00:03.1]}
77... Qd2 {[%clk 0:00:08.6]} 78. Qe4+ {[%clk 0:00:03.5]} 78... Qe3 {[%clk
0:00:08.7]} 79. Qc2+ {[%clk 0:00:03.6]} 79... Kf1 {[%clk 0:00:09.3]} 80. Qd1+
{[%clk 0:00:03.6]} 80... Kg2 {[%clk 0:00:09.5]} 81. Qd5 {[%clk 0:00:02.4]} 81...
Kg3 {[%clk 0:00:07.4]} 82. Qg8+ {[%clk 0:00:02]} 82... Kf2 {[%clk 0:00:07.3]}
0-1

[Event "Late-Titled-Tuesday-Blitz-June-18-2024"]
[Site "Chess.com"]
[Date "2024.06.18"]
[Round "4"]
[White "IMRosen"]
[Black "duone"]
[Result "1-0"]
[WhiteElo "2744"]
[BlackElo "2425"]
[TimeControl "180+1"]
[EndTime "14:43:42 PDT"]
[Termination "IMRosen won by checkmate"]

1. e4 {[%clk 0:03:00.9]} 1... c6 {[%clk 0:02:56.8]} 2. d4 {[%clk 0:03:00.9]}
2... d5 {[%clk 0:02:55.1]} 3. exd5 {[%clk 0:03:01.8]} 3... cxd5 {[%clk
0:02:55.3]} 4. c3 {[%clk 0:03:02.4]} 4... Nc6 {[%clk 0:02:54.9]} 5. Bd3 {[%clk
0:03:02.3]} 5... Nf6 {[%clk 0:02:55.3]} 6. Bf4 {[%clk 0:02:59]} 6... e6 {[%clk
0:02:53.8]} 7. Nf3 {[%clk 0:02:58]} 7... Bd6 {[%clk 0:02:50.4]} 8. Bg3 {[%clk
0:02:57.6]} 8... O-O {[%clk 0:02:49.7]} 9. Qe2 {[%clk 0:02:56.3]} 9... Bxg3
{[%clk 0:02:48]} 10. hxg3 {[%clk 0:02:55.9]} 10... h6 {[%clk 0:02:48.5]} 11.
Nbd2 {[%clk 0:02:55.1]} 11... a6 {[%clk 0:02:43.7]} 12. Ne5 {[%clk 0:02:54.8]}
12... Ne7 {[%clk 0:02:27.6]} 13. g4 {[%clk 0:02:52.8]} 13... Nd7 {[%clk
0:02:11.4]} 14. g5 {[%clk 0:02:46.7]} 14... Nxe5 {[%clk 0:02:01.4]} 15. dxe5
{[%clk 0:02:46]} 15... d4 {[%clk 0:01:58.8]} 16. gxh6 {[%clk 0:02:26]} 16... g6
{[%clk 0:01:55.3]} 17. Ne4 {[%clk 0:02:22.5]} 17... Nd5 {[%clk 0:01:51.7]} 18.
cxd4 {[%clk 0:02:01.4]} 18... Kh7 {[%clk 0:01:37.7]} 19. Qf3 {[%clk 0:01:51.8]}
19... f5 {[%clk 0:01:31.6]} 20. exf6 {[%clk 0:01:49.6]} 20... Nxf6 {[%clk
0:01:30.2]} 21. Ng5+ {[%clk 0:01:48.1]} 21... Kh8 {[%clk 0:01:30.5]} 22. Qf4
{[%clk 0:01:00.7]} 22... Qa5+ {[%clk 0:01:13.5]} 23. Kf1 {[%clk 0:00:56.9]}
23... Bd7 {[%clk 0:01:13.9]} 24. Qe5 {[%clk 0:00:52]} 24... Qxe5 {[%clk
0:01:04.5]} 25. dxe5 {[%clk 0:00:52]} 25... Ng4 {[%clk 0:01:05]} 26. Nf3 {[%clk
0:00:51.8]} 26... Bc6 {[%clk 0:01:00.9]} 27. Rh3 {[%clk 0:00:29.2]} 27... Rf4
{[%clk 0:00:49.5]} 28. Re1 {[%clk 0:00:22.1]} 28... Raf8 {[%clk 0:00:47.5]} 29.
Rg3 {[%clk 0:00:19.5]} 29... Bxf3 {[%clk 0:00:45.1]} 30. gxf3 {[%clk 0:00:18.5]}
30... Nh2+ {[%clk 0:00:40.3]} 31. Kg2 {[%clk 0:00:13.2]} 31... Nxf3 {[%clk
0:00:40.9]} 32. Re2 {[%clk 0:00:06.1]} 32... Nd4 {[%clk 0:00:37.2]} 33. Rd2
{[%clk 0:00:04.7]} 33... Nf5 {[%clk 0:00:34.4]} 34. Bxf5 {[%clk 0:00:05]} 34...
R4xf5 {[%clk 0:00:33.2]} 35. Rxg6 {[%clk 0:00:04.5]} 35... Rxe5 {[%clk
0:00:33.5]} 36. Rg3 {[%clk 0:00:03.3]} 36... Rg8 {[%clk 0:00:32.3]} 37. Rd7
{[%clk 0:00:03.2]} 37... Rxg3+ {[%clk 0:00:31.2]} 38. Kxg3 {[%clk 0:00:03.2]}
38... Rb5 {[%clk 0:00:31.4]} 39. b3 {[%clk 0:00:03.1]} 39... e5 {[%clk 0:00:27]}
40. Kg4 {[%clk 0:00:03.3]} 40... Rb6 {[%clk 0:00:26]} 41. Kg5 {[%clk 0:00:03]}
41... e4 {[%clk 0:00:24.7]} 42. Re7 {[%clk 0:00:03.5]} 42... Rb5+ {[%clk
0:00:24.3]} 43. Kg6 {[%clk 0:00:03.6]} 43... Rb6+ {[%clk 0:00:24.9]} 44. Kg5
{[%clk 0:00:03.2]} 44... Rb5+ {[%clk 0:00:25.3]} 45. Kf6 {[%clk 0:00:03.6]}
45... Rb6+ {[%clk 0:00:25.7]} 46. Re6 {[%clk 0:00:04.2]} 46... Rb5 {[%clk
0:00:18.3]} 47. Rxe4 {[%clk 0:00:04.3]} 47... Kh7 {[%clk 0:00:18.9]} 48. Re3
{[%clk 0:00:03.4]} 48... Rb6+ {[%clk 0:00:18.6]} 49. Kf7 {[%clk 0:00:03.8]}
49... Rxh6 {[%clk 0:00:16.9]} 50. Rg3 {[%clk 0:00:03.7]} 50... Rc6 {[%clk
0:00:15.8]} 51. f4 {[%clk 0:00:03.5]} 51... Rc7+ {[%clk 0:00:15.4]} 52. Ke6
{[%clk 0:00:03.9]} 52... Rc6+ {[%clk 0:00:16]} 53. Ke5 {[%clk 0:00:04.1]} 53...
Rc5+ {[%clk 0:00:16.1]} 54. Ke4 {[%clk 0:00:04.1]} 54... Rc2 {[%clk 0:00:15.3]}
55. a4 {[%clk 0:00:03.5]} 55... Re2+ {[%clk 0:00:15.4]} 56. Kd5 {[%clk
0:00:02.3]} 56... Rf2 {[%clk 0:00:15.2]} 57. Ke5 {[%clk 0:00:02.5]} 57... Re2+
{[%clk 0:00:15.5]} 58. Kf6 {[%clk 0:00:03.1]} 58... Rf2 {[%clk 0:00:13]} 59. f5
{[%clk 0:00:03.6]} 59... Rc2 {[%clk 0:00:12.2]} 60. Ke6 {[%clk 0:00:03.7]} 60...
Rc6+ {[%clk 0:00:12.3]} 61. Ke5 {[%clk 0:00:03.7]} 61... Rc5+ {[%clk 0:00:12.7]}
62. Kf6 {[%clk 0:00:03.5]} 62... Rc6+ {[%clk 0:00:13]} 63. Ke7 {[%clk
0:00:04.1]} 63... Rc7+ {[%clk 0:00:13.3]} 64. Kd6 {[%clk 0:00:04.4]} 64... Rf7
{[%clk 0:00:13.6]} 65. Ke6 {[%clk 0:00:04.8]} 65... Rc7 {[%clk 0:00:12.2]} 66.
f6 {[%clk 0:00:05.4]} 66... Rc6+ {[%clk 0:00:12.8]} 67. Kf7 {[%clk 0:00:05.6]}
67... Rc7+ {[%clk 0:00:13.1]} 68. Kf8 {[%clk 0:00:06.1]} 68... Rc8+ {[%clk
0:00:13.3]} 69. Ke7 {[%clk 0:00:06.8]} 69... Rc7+ {[%clk 0:00:13.8]} 70. Ke8
{[%clk 0:00:07.1]} 70... Rc8+ {[%clk 0:00:14.1]} 71. Kd7 {[%clk 0:00:07.7]}
71... Rc1 {[%clk 0:00:13.3]} 72. f7 {[%clk 0:00:07.7]} 72... Rf1 {[%clk
0:00:13.9]} 73. Ke6 {[%clk 0:00:07.4]} 73... Re1+ {[%clk 0:00:14.3]} 74. Kf6
{[%clk 0:00:07.5]} 74... Rf1+ {[%clk 0:00:14.8]} 75. Ke7 {[%clk 0:00:08.2]}
75... Re1+ {[%clk 0:00:15.2]} 76. Kf8 {[%clk 0:00:08.9]} 76... Rf1 {[%clk
0:00:15.8]} 77. Rg4 {[%clk 0:00:09.1]} 77... Kh6 {[%clk 0:00:14]} 78. Ke7 {[%clk
0:00:08.9]} 78... Re1+ {[%clk 0:00:13.7]} 79. Kf6 {[%clk 0:00:09.4]} 79... Rf1+
{[%clk 0:00:13.9]} 80. Ke6 {[%clk 0:00:09.9]} 80... Re1+ {[%clk 0:00:14]} 81.
Kd6 {[%clk 0:00:07.6]} 81... Rf1 {[%clk 0:00:13.7]} 82. Ke7 {[%clk 0:00:07]}
82... Re1+ {[%clk 0:00:14]} 83. Kf8 {[%clk 0:00:07.7]} 83... Rf1 {[%clk
0:00:13.3]} 84. Rb4 {[%clk 0:00:07.7]} 84... Kg6 {[%clk 0:00:10.9]} 85. Rb6+
{[%clk 0:00:07.1]} 85... Kh7 {[%clk 0:00:10.5]} 86. Rxb7 {[%clk 0:00:07.1]}
86... Rf6 {[%clk 0:00:10.4]} 87. b4 {[%clk 0:00:07.1]} 87... Kg6 {[%clk
0:00:10]} 88. Kg8 {[%clk 0:00:06.6]} 88... Rd6 {[%clk 0:00:05.7]} 89. f8=Q
{[%clk 0:00:06.5]} 89... a5 {[%clk 0:00:06.6]} 90. Qxd6+ {[%clk 0:00:05.5]}
90... Kg5 {[%clk 0:00:06.3]} 91. Rb5+ {[%clk 0:00:06.4]} 91... Kg4 {[%clk
0:00:05.3]} 92. bxa5 {[%clk 0:00:07]} 92... Kf3 {[%clk 0:00:05.3]} 93. Qd3+
{[%clk 0:00:07]} 93... Kg2 {[%clk 0:00:06.2]} 94. Rb2+ {[%clk 0:00:06.9]} 94...
Kh1 {[%clk 0:00:05.9]} 95. Qc2 {[%clk 0:00:07.1]} 95... Kg1 {[%clk 0:00:05.9]}
96. Qb1# {[%clk 0:00:07.7]} 1-0